Cogmind - Beta 16.1 @@@ ROGUE MODE // 2026.04.07 @ 20:01:09 Player: shreknel Result: Destroyed by B-75 Beast with Heavy Plasma Cannon Performance ------------- Evolutions (4) 2000 Regions Visited (7) 1400 Robots Destroyed (41) 205 Value Destroyed (1106) 1106 Prototype IDs (5) 100 Alien Tech Used (0) 0 Bonus (0) 0 TOTAL SCORE: 4811 Bonus ------- None Cogmind --------- Core Integrity 0/850 Matter 43/300 Energy 99/100 System Corruption 0% Temperature Cool (12) Movement Core (50) Location -6/Extension Parts ------- > --- POWER (1) -------- (None) > --- PROPULSION (4) --- (None) > --- UTILITY (8) ------ Advanced Signal Interpreter > --- WEAPON (2) ------- (None) > --- INVENTORY (5) ---- Advanced Trap Scanner Transmission Jammer System Restoration Module Heavy Machine Gun Magnetic Acceleration Cannon Peak State ------------ > --- POWER ------------ Cooled Deuterium Engine > --- PROPULSION ------- Improved VTOL Module Improved VTOL Module Improved VTOL Module > --- UTILITY ---------- Medium Storage Unit Structural Scanner Advanced Trap Scanner Advanced Visual Processing Unit Experimental Sensor Array Improved Terrain Scanner Core Shielding > --- WEAPON ----------- Field Laser Flak Cannon > --- INVENTORY -------- Light Nuclear Core Improved Airjet Structural Scanner Advanced Trap Scanner Seismic Detector Weapon Shielding Hacking Suite [Rating: 50] Favorites ----------- Power Ion Engine Engine Ion Engine Power Core Light Nuclear Core Propulsion Aluminum Leg Treads Light Treads Leg Aluminum Leg Wheel Armored Wheel Hover Unit Airjet Flight Unit Improved VTOL Module Utility Medium Storage Unit Device Structural Scanner Storage Medium Storage Unit Processor Advanced Visual Processing Unit Hackware System Shield Protection Core Shielding Weapon Medium Laser Energy Gun Medium Laser Energy Cannon Advanced Beam Cannon Ballistic Gun Light Assault Rifle Ballistic Cannon Flak Cannon Launcher Improved Grenade Launcher Build | -11 -10 -10 -9 -8 -7 -6 -6 ------- Run | Yrd Mat Min Mat Mat Fac Fac Ext Slots Evolved 8 | . . . 2 2 2 2 . Power . | . . . . . . . . Propulsion 2 | . . . . 1 . 1 . Utility 6 | . . . 2 1 2 1 . Weapon . | . . . . . . . . Parts Attached 43 | 6 2 2 6 11 10 6 . Power 5 | 1 . . 1 1 2 . . Engine 4 | 1 . . 1 1 1 . . Core 1 | . . . . . 1 . . Reactor . | . . . . . . . . Propulsion 13 | 2 . . 1 3 4 3 . Treads 2 | . . . . 2 . . . Leg 4 | 2 . . 1 . . 1 . Wheel 1 | . . . . . . 1 . Hover 3 | . . . . 1 1 1 . Flight 3 | . . . . . 3 . . Utility 16 | 1 1 2 2 4 3 3 . Device 7 | . 1 1 1 2 2 . . Storage 2 | 1 . 1 . . . . . Processor 3 | . . . . 2 . 1 . Hackware 2 | . . . . . . 2 . Protection 2 | . . . 1 . 1 . . Artifact . | . . . . . . . . Weapon 9 | 2 1 . 2 3 1 . . Energy Gun 3 | 1 . . . 1 1 . . Energy Cannon 1 | . . . 1 . . . . Ballistic Gun 3 | 1 1 . 1 . . . . Ballistic Cannon 1 | . . . . 1 . . . Launcher 1 | . . . . 1 . . . Special Weapon . | . . . . . . . . Impact Weapon . | . . . . . . . . Slashing Weapon . | . . . . . . . . Piercing Weapon . | . . . . . . . . Special Melee Weapon . | . . . . . . . . Unidentified Prototypes 5 | . . . 1 1 3 . . Parts Lost 15 | . . . . 4 2 7 2 Power 2 | . . . . 1 . 1 . Propulsion 6 | . . . . 1 1 2 2 Utility 4 | . . . . 1 . 3 . Weapon 3 | . . . . 1 1 1 . Highest Loss Streak 6 | . . . . 2 2 6 2 To Critical Strikes . | . . . . . . . . Average Backups 8 | 3 5 9 9 9 9 6 5 Power 1 | . 1 2 1 1 1 . . Propulsion 1 | . 2 3 2 . 2 . . Utility 3 | . . 2 2 5 5 4 3 Weapon 1 | 1 2 2 2 2 1 1 2 Tool/Special . | . . . . . . . . Unused Backups 23 | . 2 3 4 6 1 3 4 Power 3 | . 1 . . 2 . . . Propulsion 5 | . 1 . 3 1 . . . Utility 10 | . . 2 . 2 1 3 2 Weapon 5 | . . 1 1 1 . . 2 Tool/Special . | . . . . . . . . Average Slot Usage (%) 86 | . 86 100 98 88 92 40 18 Engine 7 | . 14 14 11 7 4 . . Treads 4 | . . . . 5 10 . . Leg 12 | . 28 28 21 13 . . . Hover 2 | . . . . 3 4 2 5 Flight 2 | . . . . . 6 8 . Device 17 | . 1 14 21 17 26 7 . Storage 9 | . 14 14 11 9 7 2 . Processor 4 | . . . . 8 7 5 6 Protection 6 | . . . 10 8 8 2 . Energy Gun 5 | . 14 14 11 4 . . . Ballistic Gun 5 | . 14 14 11 2 . . . Ballistic Cannon 2 | . . . . 3 4 . . Launcher 1 | . . . . 2 4 . . Peak Build Rating 50 | 6 7 9 13 30 50 42 14 Average Rating 21 | 3 6 7 10 18 40 21 13 On Entrance 14 | . 6 7 8 11 30 36 14 Avg Prop Armor Cover (%) 13 | . . . . 4 3 26 31 Naked Turns 40 | . . . . . . 40 . Heaviest Build 40 | 14 15 19 21 32 40 24 . Greatest Support 40 | 20 20 20 20 40 40 15 3 Greatest Overweight (x) 6 | 1 . . 1 6 1 1 . Average Overweight (x) . | . . . . . . . . Largest Inventory Capacity 10 | 8 8 10 10 10 10 10 5 Average Capacity 9 | 6 8 9 10 10 10 7 5 Most Carried 10 | 5 8 10 10 10 10 10 5 Average Carried 8 | 3 5 9 9 9 9 6 5 Final Capacity 10 | 8 8 10 10 10 10 5 5 Final Carried 10 | 4 8 10 10 9 10 5 5 Class Distribution -------------------- 78% | Mutant 18% | Skirmisher Dominant Class ---------------- Mutant | -10/Materials Mutant | -10/Mines Mutant | -9/Materials Mutant | -8/Materials Skirmisher | -7/Factory Mutant | -6/Factory Mutant | -6/Extension Resources | -11 -10 -10 -9 -8 -7 -6 -6 ----------- Run | Yrd Mat Min Mat Mat Fac Fac Ext Matter Collected 963 | 206 119 40 169 256 112 50 11 Remotely . | . . . . . . . . Salvage Created 1205 | . 222 . 277 463 151 92 . Parts 74 | . 14 . 21 19 14 6 . Haulers Intercepted 1 | . . . . 1 . . . Recyclers Shooed 2 | . . . . 2 . . . Parts Field Recycled . | . . . . . . . . Retrieved Matter . | . . . . . . . . Parts Self-Destructed . | . . . . . . . . Prevented . | . . . . . . . . Parts Restored . | . . . . . . . . Kills | -11 -10 -10 -9 -8 -7 -6 -6 ------- Run | Yrd Mat Min Mat Mat Fac Fac Ext Combat Hostiles Destroyed 32 | . 4 . 9 9 8 2 . Guns 19 | . 4 . 9 4 1 1 . Cannons 6 | . . . . 3 2 1 . AOE 7 | . . . . 2 5 . . Classes Destroyed 9 | . 4 . 1 1 3 . . Worker 1 | . . . . . 1 . . Hauler 1 | . . . . 1 . . . Recycler 3 | . 1 . . 2 . . . Operator 1 | . . . . . 1 . . Watcher 3 | . 1 . 2 . . . . Swarmer 15 | . 2 . 6 3 4 . . Grunt 10 | . 2 . 1 3 2 2 . Sentry 6 | . . . 2 3 1 . . Programmer 1 | . . . . . 1 . . Best Kill Streak 4 | . 2 . 4 4 4 1 . Combat Bots Only 4 | . 2 . 4 4 4 1 . Max Kills in Single Turn 2 | . 1 . 1 2 2 1 . Gunslinging . | . . . . . . . . Exploded 2 | . . . . 1 2 . . Melee . | . . . . . . . . Uniques/NPCs Destroyed . | . . . . . . . . Combat | -11 -10 -10 -9 -8 -7 -6 -6 -------- Run | Yrd Mat Min Mat Mat Fac Fac Ext Hostile Shots Fired 291 | . 10 . 35 42 64 53 87 Missed 92 | . 3 . 6 11 19 9 44 Hits 199 | . 7 . 29 31 45 44 43 Projectile 199 | . 7 . 29 31 45 44 43 Critical Strikes 5 | . . . 1 1 2 1 . Actively Blocked 2 | . . . . 1 1 . . Damage Taken 3119 | . 65 . 303 486 769 853 643 Core 1217 | . . . 63 116 174 365 499 Absorbed by Shields 17 | . . . . . 17 . . Redirected to Shielding 95 | . . . 12 25 35 23 . Regen/Repaired (Parts) 147 | . . . 87 60 . . . Core Remaining (%) 87 | 100 . 100 84 78 75 . . Volleys Fired 102 | . 15 . 25 35 13 14 . Largest 2 | . 2 . 2 2 2 1 . Hottest 100 | . 70 . 70 93 100 63 . Shots Fired 185 | . 30 . 50 68 23 14 . Gun 142 | . 30 . 50 49 6 7 . Cannon 31 | . . . . 14 10 7 . Launcher 12 | . . . . 5 7 . . Special . | . . . . . . . . Kinetic 90 | . 15 . 25 33 10 7 . Thermal 83 | . 15 . 25 30 6 7 . Explosive 12 | . . . . 5 7 . . Electromagnetic . | . . . . . . . . Robot Hit Streak 12 | . 5 . 10 12 3 5 . Robot Miss Streak 9 | . 2 . 4 9 6 5 . Penetration Max . | . . . . . . . . Secondary Targets 2 | . . . 2 . . . . Max Gunslinging Chain 1 | . . . 1 . . . . Shots Hit Robots 130 | . 19 . 32 52 16 11 . Core Hits 98 | . 10 . 15 30 26 17 . Critical Kills . | . . . . . . . . Critical Parts Destroyed 1 | . 1 . . . . . . Critical Strikes 6 | . 2 . 1 2 1 . . Burn 5 | . 1 . 1 2 1 . . Destroy 1 | . 1 . . . . . . Melee Attacks . | . . . . . . . . Impact . | . . . . . . . . Slashing . | . . . . . . . . Piercing . | . . . . . . . . Sneak Attacks . | . . . . . . . . Combat Hostiles . | . . . . . . . . Follow-up Attacks . | . . . . . . . . Damage Inflicted 2598 | . 237 . 423 870 797 271 . Guns 1285 | . 237 . 423 468 55 102 . Cannons 513 | . . . . 208 160 145 . Explosions 735 | . . . . 188 547 . . Melee . | . . . . . . . . Ramming 65 | . . . . 6 35 24 . Kinetic 920 | . 109 . 172 334 160 145 . Thermal 878 | . 128 . 251 342 55 102 . Explosive 735 | . . . . 188 547 . . Electromagnetic . | . . . . . . . . Impact . | . . . . . . . . Slashing . | . . . . . . . . Piercing . | . . . . . . . . Highest Corruption . | . . . . . . . . Average Corruption . | . . . . . . . . Corruption Purged . | . . . . . . . . Corruption Blocked . | . . . . . . . . Overload Shots . | . . . . . . . . Overflow Damage 43 | . . . . . 43 . . Projectiles . | . . . . . . . . Explosions 43 | . . . . . 43 . . Melee . | . . . . . . . . Knockbacks 19 | . . . . 9 4 6 . Impact 1 | . . . . . . 1 . Kinetic 18 | . . . . 9 4 5 . Secondary . | . . . . . . . . Self-Inflicted Damage 190 | . . . . 56 123 11 . Shots 4 | . . . . 1 3 . . Rammed 19 | . . . . . 13 6 . Targets Rammed 20 | . . . . 1 13 6 . Kicked 1 | . . . . 1 . . . Crushed . | . . . . . . . . Highest Temperature 321 | . 39 . 321 47 30 93 . Average Temperature 33 | . 13 . 86 20 15 45 . Received Heat Transfer 1158 | . 24 . 54 207 342 396 135 Siege Activations . | . . . . . . . . Martial Activations . | . . . . . . . . Shielding Activations . | . . . . . . . . Robots Disrupted . | . . . . . . . . Combat Hostiles . | . . . . . . . . Robots Corrupted . | . . . . . . . . Combat Hostiles . | . . . . . . . . Parts Fried . | . . . . . . . . Impact Corruptions . | . . . . . . . . Robots Melted . | . . . . . . . . Combat Hostiles . | . . . . . . . . Parts Melted 3 | . 1 . 2 . . . . Heat Transferred 2701 | . 444 . 814 1036 185 222 . Parts Sabotaged . | . . . . . . . . Parts Stolen . | . . . . . . . . Parts Stripped . | . . . . . . . . Power Chain Reactions . | . . . . . . . . Alert | -11 -10 -10 -9 -8 -7 -6 -6 ------- Run | Yrd Mat Min Mat Mat Fac Fac Ext Maximum Alert Level . | . . . . . . . . Low Security (%) 100 | 100 100 100 100 100 100 100 100 Level 1 . | . . . . . . . . Level 2 . | . . . . . . . . Level 3 . | . . . . . . . . Level 4 . | . . . . . . . . Level 5 . | . . . . . . . . High Security . | . . . . . . . . Max Security . | . . . . . . . . Peak Influence 151 | . 91 27 151 130 122 30 30 Initial 46 | . . 27 . 46 35 20 1 Average 27 | . 20 1 51 34 32 5 8 Influence Increases 1179 | . 138 . 283 308 319 86 45 Destroy 0b10 Robot/C 640 | . 80 . 180 180 160 40 . Destroy 0b10 Robot/NC 45 | . 10 . 10 15 10 . . Destroy Leader 158 | . 32 . 44 42 30 10 . Successful Hack 12 | . . . 3 3 . 6 . Disable Machine 15 | . . . . . 15 . . Destroy Structure 84 | . 1 . 1 38 44 . . Partial Spotted 15 | . . . . 15 . . . Lose Combat Pursuer 210 | . 15 . 45 15 60 30 45 Influence Decreases 1174 | . 67 71 172 340 356 124 44 Entered New Map 178 | . . 44 . 65 44 22 3 Time Decay 896 | . 67 27 172 245 292 72 21 Lost Part 100 | . . . . 30 20 30 20 Squads Dispatched 8 | . 3 . . . 4 1 . Investigation 1 | . 1 . . . . . . Extermination 2 | . . . . . 2 . . Reinforcement 5 | . 2 . . . 2 1 . Assault . | . . . . . . . . Garrison . | . . . . . . . . Intercept . | . . . . . . . . Searches Triggered . | . . . . . . . . Construction Impeded . | . . . . . . . . Haulers Reinforced . | . . . . . . . . Active Scanning Responses . | . . . . . . . . Cargo Convoy Interrupts . | . . . . . . . . Stealth | -11 -10 -10 -9 -8 -7 -6 -6 --------- Run | Yrd Mat Min Mat Mat Fac Fac Ext Distress Signals 1 | . . . 1 . . . . Communications Jammed . | . . . . . . . . Distress Signals . | . . . . . . . . Times Spotted 71 | . 9 . 16 16 16 5 9 Peak Tracking Total 6 | . 3 . 5 4 4 4 6 Tactical Retreats 9 | . 1 . 2 1 2 1 2 Traps | -11 -10 -10 -9 -8 -7 -6 -6 ------- Run | Yrd Mat Min Mat Mat Fac Fac Ext Traps Triggered 5 | . 1 . . 3 1 . . Indirectly . | . . . . . . . . Trap Hack Attempts . | . . . . . . . . Triggered . | . . . . . . . . Disarmed . | . . . . . . . . Reprogrammed . | . . . . . . . . Reused . | . . . . . . . . Traps Extracted . | . . . . . . . . Installed . | . . . . . . . . Triggered . | . . . . . . . . Machines | -11 -10 -10 -9 -8 -7 -6 -6 ---------- Run | Yrd Mat Min Mat Mat Fac Fac Ext Machines Disabled 1 | . . . . . 1 . . Max in Single Turn 1 | . . . . . 1 . . Garrison Access 1 | . . . . . 1 . . Machines Repaired . | . . . . . . . . Machines Dismantled . | . . . . . . . . Machines Sabotaged . | . . . . . . . . Overloaded Fab Kills . | . . . . . . . . Hacking | -11 -10 -10 -9 -8 -7 -6 -6 --------- Run | Yrd Mat Min Mat Mat Fac Fac Ext Machines Accessed 18 | . . . 4 5 6 3 . Terminals 8 | . . . 1 2 3 2 . Fabricators 1 | . . . . . 1 . . Repair Stations 5 | . . . 2 2 . 1 . Recycling Units 1 | . . . 1 . . . . Scanalyzers . | . . . . . . . . Garrison Access 3 | . . . . 1 2 . . Total Hacks 45 | . . . 15 10 12 8 . Successful 20 | . . . 7 6 3 4 . Failed 25 | . . . 8 4 9 4 . Catastrophic 4 | . . . . 1 3 . . Database Lockouts . | . . . . . . . . Manual . | . . . . . . . . Terminals 16 | . . . 3 4 6 3 . Fabricators 4 | . . . . . 4 . . Repair Stations 18 | . . . 8 5 . 5 . Recycling Units 4 | . . . 4 . . . . Scanalyzers . | . . . . . . . . Garrison Access 3 | . . . . 1 2 . . Terminal Hacks 4 | . . . . 1 . 3 . Record 2 | . . . . . . 2 . Open Door 1 | . . . . . . 1 . Emergency Access Points 1 | . . . . 1 . . . Fabricator Hacks 2 | . . . . . 2 . . Network Status 1 | . . . . . 1 . . Build 1 | . . . . . 1 . . Repair Station Hacks 12 | . . . 6 5 . 1 . Scan Component 7 | . . . 3 3 . 1 . Repair 5 | . . . 3 2 . . . Recycling Unit Hacks 1 | . . . 1 . . . . Report Inventory 1 | . . . 1 . . . . Scanalyzer . | . . . . . . . . Garrison Access Hacks 1 | . . . . . 1 . . Seal Access 1 | . . . . . 1 . . Unauthorized Hacks . | . . . . . . . . Terminals . | . . . . . . . . Fabricators . | . . . . . . . . Repair Stations . | . . . . . . . . Recycling Units . | . . . . . . . . Scanalyzers . | . . . . . . . . Garrison Access . | . . . . . . . . Data Cores Recovered 1 | . . . . . 1 . . Used . | . . . . . . . . Hacking Detections 9 | . . . 2 2 4 1 . Full Trace Events . | . . . . . . . . Feedback Events . | . . . . . . . . Feedback Blocked . | . . . . . . . . Robot Schematics Acquired . | . . . . . . . . Robots Built . | . . . . . . . . Authchips . | . . . . . . . . Time . | . . . . . . . . Total Robot Build Rating . | . . . . . . . . Part Schematics Acquired . | . . . . . . . . Parts Built 2 | . . . . . 2 . . Authchips . | . . . . . . . . Time 117 | . . . . . 117 . . Total Part Build Rating 14 | . . . . . 14 . . Part Studies Acquired . | . . . . . . . . Parts Repaired 5 | . . . 3 2 . . . Time 136 | . . . 78 58 . . . Parts Recycled . | . . . . . . . . Recycled Matter . | . . . . . . . . Retrieved Matter . | . . . . . . . . Retrieved Components . | . . . . . . . . Parts Scanalyzed . | . . . . . . . . Part Schematics Acquired . | . . . . . . . . Parts Damaged . | . . . . . . . . Bothacking | -11 -10 -10 -9 -8 -7 -6 -6 ------------ Run | Yrd Mat Min Mat Mat Fac Fac Ext Used RIF Installer . | . . . . . . . . Robots Hacked . | . . . . . . . . Non-combat . | . . . . . . . . Combat . | . . . . . . . . Robot Hacks Applied . | . . . . . . . . Relay Couplers Released . | . . . . . . . . Fabnet Peak Effective % . | . . . . . . . . Robots Rewired . | . . . . . . . . Allies Hacked . | . . . . . . . . Hacks Repelled . | . . . . . . . . Allies | -11 -10 -10 -9 -8 -7 -6 -6 -------- Run | Yrd Mat Min Mat Mat Fac Fac Ext Total Allies . | . . . . . . . . Largest Group . | . . . . . . . . Highest-Rated Group . | . . . . . . . . Highest-Rated Ally . | . . . . . . . . Total Orders . | . . . . . . . . Ally Attacks . | . . . . . . . . Total Damage . | . . . . . . . . Kills . | . . . . . . . . Allies Corrupted . | . . . . . . . . Allies Melted . | . . . . . . . . Intel | -11 -10 -10 -9 -8 -7 -6 -6 ------- Run | Yrd Mat Min Mat Mat Fac Fac Ext Active Infowar (turns) 3249 | . . 417 547 1018 1117 150 . Optics 2284 | . . . . 1017 1117 150 . Sensors 2741 | . . . 547 991 1117 86 . Terrain 1267 | . . . . . 1117 150 . Structural 3214 | . . 417 521 1012 1117 147 . Traps 637 | . . . . . 637 . . Robot Analysis Total . | . . . . . . . . Derelict Logs Recovered 1 | . . 1 . . . . . Drone Launches . | . . . . . . . . Drone Recoveries . | . . . . . . . . Exploration | -11 -10 -10 -9 -8 -7 -6 -6 ------------- Run | Yrd Mat Min Mat Mat Fac Fac Ext Turns Passed 4083 | 56 334 552 547 1018 1117 363 96 Spaces Moved 2732 | 40 223 448 246 461 682 441 191 Core 446 | 11 . . . 2 . 242 191 Treads 504 | . . . . 135 369 . . Legs 1270 | 29 223 448 246 324 . . . Wheels 45 | . . . . . . 45 . Hover 43 | . . . . . . 43 . Flight 424 | . . . . . 313 111 . Fastest Speed 50 | 50 120 120 120 120 99 50 50 Average Speed 115 | 107 120 120 125 149 132 67 50 Slowest Speed 350 | 120 120 120 190 350 240 99 50 Overloaded Moves . | . . . . . . . . Propulsion Burnouts . | . . . . . . . . Robots Hopped . | . . . . . . . . Potential Cave-ins . | . . . . . . . . Cave-ins Triggered . | . . . . . . . . Exploration Rate (%) 30 | 3 30 76 29 37 24 11 33 Regions Visited 7 Branch Regions 2 Pre-discovered Areas . | . . . . . . . . Known Exits Taken 2 | . . 1 . . . 1 . Unknown Exits Taken 5 | 1 1 . 1 1 1 . . Scrap Searched 3 | . . 3 . . . . . Spaces Dug . | . . . . . . . . Terrain Destroyed 123 | . . . . 61 62 . . Melee . | . . . . . . . . Projectile . | . . . . . . . . AOE 123 | . . . . 61 62 . . Terrain Rammed . | . . . . . . . . Walls Destroyed . | . . . . . . . . Machines Disabled . | . . . . . . . . Actions | -11 -10 -10 -9 -8 -7 -6 -6 --------- Run | Yrd Mat Min Mat Mat Fac Fac Ext Total 3487 | 51 260 464 438 727 865 491 191 Wait 460 | . 12 3 137 172 121 15 . Move 2725 | 39 222 447 245 460 681 440 191 Hop . | . . . . . . . . Pick Up 50 | 6 6 6 10 14 4 4 . Fast Attach 26 | 4 1 . 5 10 2 4 . Attach 31 | 2 . . 4 12 7 6 . Detach 13 | . . . 1 6 6 . . Swap 9 | . 1 2 1 4 1 . . Drop 37 | . 3 5 10 13 4 2 . Fire 102 | . 15 . 25 35 13 14 . Melee . | . . . . . . . . Ram 6 | . . . . . . 6 . Kick 1 | . . . . 1 . . . Crush 13 | . . . . . 13 . . Escape Stasis 13 | . . . . . 13 . . Rewire 1 | . . 1 . . . . . Trap . | . . . . . . . . Miscellaneous . | . . . . . . . . Route ------- -11/Scrapyard -10/Materials -10/Mines (discovered 2 exits: *Mat x2) -9/Materials -8/Materials -7/Factory (discovered 2 exits: *Fac / [*Sto]) -6/Factory -6/Extension History --------- Turn | Location | Event 12 | -11/Scrapyard | Discovered new exit (range 15) 57 | -11/Scrapyard | Entered Materials 305 | -10/Materials | Build established: Mutant 322 | -10/Materials | Discovered new exit (range 14) 391 | -10/Materials | Entered Mines 424 | -10/Mines | Discovered new exit (range 13) 808 | -10/Mines | Identified exit to Materials 826 | -10/Mines | Found a damaged Exp. Sensor Array with a note attached 829 | -10/Mines | Found Prototype Device 943 | -10/Mines | Entered Materials 943 | -9/Materials | Evolved 2 slots: Utility x2 1011 | -9/Materials | Repaired Structural Scanner 1042 | -9/Materials | Repaired Core Shielding 1307 | -9/Materials | Repaired Aluminum Leg 1424 | -9/Materials | Discovered new exit (range 13) 1490 | -9/Materials | Entered another Materials area 1490 | -8/Materials | Evolved 2 slots: Propulsion x1, Utility x1 2337 | -8/Materials | Identified Exp. Sensor Array 2386 | -8/Materials | Repaired Core Shielding 2440 | -8/Materials | Discovered new exit (range 9) 2492 | -8/Materials | Repaired Imp. Ion Engine 2508 | -8/Materials | Entered Factory 2508 | -7/Factory | Evolved 2 slots: Utility x2 2656 | -7/Factory | Fabricated Adv. Trap Scanner (x2) 2797 | -7/Factory | Build established: Skirmisher 2906 | -7/Factory | Discovered new exit (range 19) 3585 | -7/Factory | Build established: Mutant 3614 | -7/Factory | Discovered new exit (range 13) 3625 | -7/Factory | Entered another Factory area 3625 | -6/Factory | Evolved 2 slots: Propulsion x1, Utility x1 3775 | -6/Factory | Released all parts (10) 3803 | -6/Factory | Lost 6 parts (1p2n2u1w) 3986 | -6/Factory | Discovered new exit (range 6) 3988 | -6/Factory | Identified exit to Extension 3988 | -6/Factory | Entered Extension 4069 | -6/Extension | Spotted B-75 Beast 4071 | -6/Extension | Core integrity fell below 50% 4074 | -6/Extension | Spotted B-75 Beast 4081 | -6/Extension | Core integrity fell below 20% 4084 | -6/Extension | Destroyed by B-75 Beast with Heavy Plasma Cannon Last Messages --------------- Rating: 2 Time: 44 03977_ T-07 Excavator is excavating. 03986_ Connecting with Door Terminal... >>Open(Door) Sealed Blast Doors opened. 03986_ EXIT=FOUND 03988_ EXIT=IDENTIFIED: EXTENSION LOCATION=EXTENSION GOAL=ESCAPE 04028_ U-05 Engineer enters Transfer Station. 04032_ K-01 Serf exits Transfer Station. 04032_ R-10 Processor exits Transfer Station. 04073_ R-10 Processor knocked back. 04075_ Acquired 4 matter. 04075_ Acquired 6 matter. 04076_ Acquired 1 matter. 04076_ Broken Arm. Wheel destroyed. 04079_ Imp. Gravmag System destroyed. 04079_ Knocked back. Map ----- +----------------------------------------------------+ | ?????????????????????????????????????????????????? | | ?????????????????????????????????????????????????? | | ?????????????????????????????????????????????????? | | ?????????????????????????????????????????????????? | | ?????????????????????????????????????????????????? | | ?????????????????????????????????????????????????? | | ?????????????????????????????????????????????????? | | ?????????????????????????????????????????????????? | | ?????????????????????????????????????????????????? | | ?????????????????????????????????????????????????? | | ?????????????????????????????????????????????????? | | ??????????????? ?????????????????????????????????? | | ??????????????? ?????????????????????????????????? | | ??????????????? ?????????????????????????????????? | | ??????????????? ?????????????????????????????????? | | ??????????????? ???????????#?????????????????????? | | ??????????????# #?????????? ?????????????????????? | | ??????????????# #????????? #?????????????????????? | | ??????????????# #????????? #?????????????????????? | | ??????????????# #????????? #?????????????????????? | | ??????????????# #?????????Y#?????????????????????? | | ??????????????# #?######?? #?????????????????????? | | ????????????### ### ## ### ###???????????????????? | | ????????????#"" ""Y Y "" ""#???????????????????? | | ????????????# " " " " #???????????????????? | | ????????##??# % @ #???????????????????? | | ????????# ### #???????????????????? | | ##"#######"## #???????????????????? | | ????????????????? | | % ?????????????? | | ?????????????? | | ????????????? | | BB uk kk R ???????????? | | ############" BB BB #########???????????? | | ???????????## BB #???????????????????? | | ????????????# #???????????????????? | | ????????????# #???????????????????? | | ????????????# #???????????????????? | | ????????????######T#"""#######???????????????????? | | ??????????????????##?????????????????????????????? | | ?????????????????????????????????????????????????? | | | | | | | | | | | | | | | | | | | +----------------------------------------------------+ Best States ------------- Heat Dissipation 37 Energy Generation 18 Energy Capacity 310 Matter Stores 300 Matter Capacity 300 Sight Range 20 Robot Scan Range 20 Terrain Scan Range 16 Terrain Scan Density 10 Core Shielding 20 Weapon Shielding 33 Evasion (%) 55 Recoil Reduction 2 Offensive Hacking 10 Defensive Hacking 10 Item Schematics ----------------- None Robot Schematics ------------------ None Fabricated ------------ Adv. Trap Scanner | x2 | -7/Factory | Preloaded Repaired ---------- Structural Scanner | 50% | -9/Materials Core Shielding | 52% | -9/Materials Aluminum Leg | 41% | -9/Materials Core Shielding | 26% | -8/Materials Imp. Ion Engine | 67% | -8/Materials Studied --------- None Alien Tech Used ----------------- None Achievements -------------- Infodabbler Just What I Needed Throw Away The Key Challenges ------------ None Game ------ Seed FusionAssembledShield Manual? 0 Play Time 01:25:38 Cumulative 23.1 hours Start 2026.04.06 @ 14:24:21 End 2026.04.07 @ 20:01:09 Sessions 3 Manual Loads 0 Difficulty Rogue Special Mode None Game No. 15 Rogue 15 Adventurer 0 Explorer 0 Win Type - Total 0 Types 0/0/0/0/0/0/0/0/0/0 Lore% 10 Gallery% 16 Achievement% 15 Wizard Run 0 Options --------- Layout 1 ASCII 0 Keyboard 1 Movement Numpad Keybinds 0 Fullscreen 1 Font 16/Terminus Map View 50x40 Zoom Use 0% Tactical HUD 1 Map Filters NONE Filters NONE Steam SD RUN: bd7890b5-f671-414e-bd3a-192d302b9666